Cogmind - Beta 12 @@@ ROGUE MODE // 2023.05.13 @ 19:17:26 Player: Ms. V3-11A Result: Destroyed by as-11096 with Assembled Heavy Rifle Performance ------------- Evolutions (0) 0 Regions Visited (2) 400 Robots Destroyed (20) 100 Value Destroyed (598) 598 Prototype IDs (0) 0 Alien Tech Used (0) 0 Bonus (0) 0 TOTAL SCORE: 1098 Bonus ------- None Cogmind --------- Core Integrity 0/250 Matter 214/300 Energy 115/125 System Corruption 0% Temperature Cool (0) Movement Walking (190) Ox1 Location -10/Mines Parts ------- > --- POWER (1) -------- Light Ion Engine > --- PROPULSION (2) --- Aluminum Leg Aluminum Leg > --- UTILITY (2) ------ Large Storage Unit > --- WEAPON (2) ------- Particle Cannon Mini Grenade Launcher > --- INVENTORY (15) --- Aluminum Leg Large Storage Unit Large Storage Unit Large Battery (200) High-capacity Battery (224) Large Matter Pod (150) Power Shielding Particle Cannon Assault Rifle Light Assault Rifle Mini Grenade Launcher Peak State ------------ > --- POWER ------------ Light Nuclear Core > --- PROPULSION ------- Aluminum Leg Aluminum Leg > --- UTILITY ---------- Improved Heat Sink Large Storage Unit > --- WEAPON ----------- Particle Gun Assault Rifle > --- INVENTORY -------- Ion Engine Light Ion Engine Aluminum Leg Aluminum Leg Aluminum Leg Large Storage Unit High-capacity Battery Particle Cannon Particle Cannon Particle Cannon Particle Cannon Light Assault Rifle Mini Grenade Launcher Mini Grenade Launcher [Rating: 14] Favorites ----------- Power Ion Engine Engine Ion Engine Power Core Light Nuclear Core Propulsion Aluminum Leg Leg Aluminum Leg Utility Improved Heat Sink Device Improved Heat Sink Storage Large Storage Unit Weapon Particle Cannon Energy Gun Particle Gun Energy Cannon Particle Cannon Ballistic Gun Assault Rifle Launcher Mini Grenade Launcher Build | -11 -10 -10 ------- Run | Jun Mat Min Slots Evolved . | . . . Power . | . . . Propulsion . | . . . Utility . | . . . Weapon . | . . . Parts Attached 19 | . 12 7 Power 3 | . 2 1 Engine 2 | . 1 1 Core 1 | . 1 . Reactor . | . . . Propulsion 6 | . 4 2 Treads . | . . . Leg 6 | . 4 2 Wheel . | . . . Hover . | . . . Flight . | . . . Utility 2 | . 2 . Device 1 | . 1 . Storage 1 | . 1 . Processor . | . . . Hackware . | . . . Protection . | . . . Artifact . | . . . Weapon 8 | . 4 4 Energy Gun 1 | . 1 . Energy Cannon 3 | . 2 1 Ballistic Gun 1 | . 1 . Ballistic Cannon . | . . . Launcher 3 | . . 3 Special Weapon . | . . . Impact Weapon . | . . . Slashing Weapon . | . . . Piercing Weapon . | . . . Special Melee Weapon . | . . . Unidentified Prototypes . | . . . Parts Lost 6 | . 1 5 Power 2 | . 1 1 Propulsion 2 | . . 2 Utility 1 | . . 1 Weapon 1 | . . 1 Highest Loss Streak 5 | . 1 5 To Critical Strikes . | . . . Average Slot Usage (%) 98 | . 98 97 Engine 9 | . 8 13 Core 4 | . 5 . Leg 27 | . 28 27 Device 12 | . 12 12 Storage 14 | . 14 14 Energy Cannon 12 | . 11 14 Ballistic Gun 14 | . 15 12 Naked Turns . | . . . Heaviest Build 32 | 11 32 31 Greatest Support 20 | 20 20 20 Greatest Overweight (x) 1 | . 1 1 Average Overweight (x) . | . . 1 Largest Inventory Capacity 15 | 8 15 15 Average Capacity 14 | 8 14 15 Most Carried 15 | 6 15 14 Average Carried 12 | 5 12 13 Final Capacity 15 | 8 15 15 Final Carried 13 | 4 13 11 Class Distribution -------------------- 93% | Scavenger-Mutant 6% | Mutant Dominant Class ---------------- Scavenger-Mutant | -10/Materials Scavenger-Mutant | -10/Mines Resources | -11 -10 -10 ----------- Run | Jun Mat Min Matter Collected 636 | 171 465 . Remotely . | . . . Salvage Created 828 | . 670 158 Parts 52 | . 44 8 Haulers Intercepted 2 | . 2 . Recyclers Shooed 3 | . 3 . Parts Field Recycled . | . . . Retrieved Matter . | . . . Parts Self-Destructed . | . . . Prevented . | . . . Kills | -11 -10 -10 ------- Run | Jun Mat Min Combat Hostiles Destroyed 17 | . 11 6 Guns 8 | . 8 . Cannons 8 | . 3 5 AOE 1 | . . 1 Classes Destroyed 7 | . 5 2 Worker 1 | . 1 . Builder 2 | . 1 1 Hauler 2 | . 2 . Recycler 1 | . 1 . Grunt 13 | . 11 2 Demolisher 1 | . . 1 Assembled 3 | . . 3 Best Kill Streak 7 | . 4 7 Combat Bots Only 6 | . 2 6 Max Kills in Single Turn 2 | . 2 1 Gunslinging . | . . . Exploded 1 | . . 1 Melee . | . . . Uniques/NPCs Destroyed . | . . . Combat | -11 -10 -10 -------- Run | Jun Mat Min Damage Taken 1174 | . 664 510 Core 259 | . 148 111 Absorbed by Shields . | . . . Core Remaining (%) 100 | 100 . . Volleys Fired 73 | . 64 9 Largest 2 | . 2 2 Hottest 136 | . 88 136 Shots Fired 136 | . 122 14 Gun 79 | . 79 . Cannon 56 | . 43 13 Launcher 1 | . . 1 Special . | . . . Kinetic 67 | . 67 . Thermal 68 | . 55 13 Explosive 1 | . . 1 Electromagnetic . | . . . Robot Hit Streak 14 | . 12 14 Robot Miss Streak 5 | . 5 1 Penetration Max . | . . . Secondary Targets 2 | . 2 . Max Gunslinging Chain 1 | . 1 . Shots Hit Robots 79 | . 69 10 Core Hits 36 | . 27 9 Critical Kills . | . . . Critical Parts Destroyed . | . . . Critical Strikes . | . . . Melee Attacks . | . . . Impact . | . . . Slashing . | . . . Piercing . | . . . Sneak Attacks . | . . . Combat Hostiles . | . . . Follow-up Attacks . | . . . Damage Inflicted 1370 | . 1112 258 Guns 602 | . 602 . Cannons 700 | . 474 226 Explosions 32 | . . 32 Melee . | . . . Ramming 36 | . 36 . Kinetic 524 | . 524 . Thermal 778 | . 552 226 Explosive 32 | . . 32 Electromagnetic . | . . . Impact . | . . . Slashing . | . . . Piercing . | . . . Highest Corruption . | . . . Average Corruption . | . . . Corruption Purged . | . . . Corruption Blocked . | . . . Overload Shots . | . . . Overflow Damage . | . . . Projectiles . | . . . Explosions . | . . . Melee . | . . . Knockbacks . | . . . Impact . | . . . Kinetic . | . . . Secondary . | . . . Self-Inflicted Damage . | . . . Shots . | . . . Rammed . | . . . Targets Rammed 9 | . 9 . Kicked 9 | . 9 . Crushed . | . . . Highest Temperature 353 | . 42 353 Average Temperature 79 | . 13 211 Received Heat Transfer 390 | . 342 48 Effects 4 | . . 4 Shutdowns 1 | . . 1 Energy Bleed 1 | . . 1 Matter Decay 1 | . . 1 Short Circuit 1 | . . 1 Siege Activations . | . . . Robots Corrupted . | . . . Combat Hostiles . | . . . Parts Fried . | . . . Impact Corruptions . | . . . Robots Melted . | . . . Combat Hostiles . | . . . Parts Melted 1 | . 1 . Heat Transferred 1443 | . 1036 407 Parts Sabotaged . | . . . Parts Stolen . | . . . Parts Stripped . | . . . Power Chain Reactions . | . . . Missiles Intercepted . | . . . Alert | -11 -10 -10 ------- Run | Jun Mat Min Peak Influence 167 | . 167 76 Initial 10 | . . 10 Average 52 | . 61 13 Maximum Alert Level . | . . . Low Security (%) 100 | 100 100 100 Level 1 . | . . . Level 2 . | . . . Level 3 . | . . . Level 4 . | . . . Level 5 . | . . . High Security . | . . . Max Security . | . . . Squads Dispatched 1 | . 1 . Investigation . | . . . Extermination . | . . . Reinforcement 1 | . 1 . Assault . | . . . Garrison . | . . . Intercept . | . . . Searches Triggered . | . . . Construction Impeded . | . . . Haulers Reinforced . | . . . Active Scanning Responses . | . . . Cargo Convoy Interrupts . | . . . Stealth | -11 -10 -10 --------- Run | Jun Mat Min Distress Signals 1 | . 1 . Communications Jammed . | . . . Distress Signals . | . . . Times Spotted 50 | . 31 19 Peak Tracking Total 12 | . 5 12 Tactical Retreats . | . . . Traps | -11 -10 -10 ------- Run | Jun Mat Min Traps Triggered 1 | . 1 . Indirectly . | . . . Trap Hack Attempts . | . . . Triggered . | . . . Disarmed . | . . . Reprogrammed . | . . . Reused . | . . . Traps Extracted . | . . . Installed . | . . . Triggered . | . . . Machines | -11 -10 -10 ---------- Run | Jun Mat Min Machines Disabled 3 | . 2 1 Max in Single Turn 1 | . 1 1 Machines Repaired . | . . . Machines Sabotaged . | . . . Overloaded Fab Kills . | . . . Hacking | -11 -10 -10 --------- Run | Jun Mat Min Machines Accessed 8 | . 8 . Terminals 7 | . 7 . Fabricators . | . . . Repair Stations 1 | . 1 . Recycling Units . | . . . Scanalyzers . | . . . Garrison Access . | . . . Total Hacks 25 | . 25 . Successful 11 | . 11 . Failed 14 | . 14 . Catastrophic 2 | . 2 . Database Lockouts . | . . . Manual 8 | . 8 . Terminals 23 | . 23 . Fabricators . | . . . Repair Stations 2 | . 2 . Recycling Units . | . . . Scanalyzers . | . . . Garrison Access . | . . . Terminal Hacks 10 | . 10 . Record 1 | . 1 . Robot Analysis 2 | . 2 . Branch Access Points 1 | . 1 . Alert Level 2 | . 2 . Locate Traps 1 | . 1 . Dispatch Records 1 | . 1 . Security Status 1 | . 1 . Zone Layout 1 | . 1 . Fabricator Hacks . | . . . Repair Station Hacks 1 | . 1 . Scan Component 1 | . 1 . Recycling Unit Hacks . | . . . Scanalyzer . | . . . Garrison Access Hacks . | . . . Unauthorized Hacks . | . . . Terminals . | . . . Fabricators . | . . . Repair Stations . | . . . Recycling Units . | . . . Scanalyzers . | . . . Garrison Access . | . . . Data Cores Recovered . | . . . Used . | . . . Hacking Detections 6 | . 6 . Full Trace Events . | . . . Feedback Events . | . . . Feedback Blocked . | . . . Robot Schematics Acquired . | . . . Robots Built . | . . . Authchips . | . . . Time . | . . . Total Robot Build Rating . | . . . Part Schematics Acquired . | . . . Parts Built . | . . . Authchips . | . . . Time . | . . . Total Part Build Rating . | . . . Parts Repaired . | . . . Time . | . . . Parts Recycled . | . . . Recycled Matter . | . . . Retrieved Matter . | . . . Retrieved Components . | . . . Parts Scanalyzed . | . . . Part Schematics Acquired . | . . . Parts Damaged . | . . . Bothacking | -11 -10 -10 ------------ Run | Jun Mat Min Used RIF Installer . | . . . Robots Hacked . | . . . Non-combat . | . . . Combat . | . . . Robot Hacks Applied . | . . . Relay Couplers Released . | . . . Fabnet Peak Effective % . | . . . Robots Rewired . | . . . Allies Hacked . | . . . Hacks Repelled . | . . . Allies | -11 -10 -10 -------- Run | Jun Mat Min Total Allies 3 | . . 3 Largest Group 3 | . . 3 Highest-Rated Group 40 | . . 40 Highest-Rated Ally 16 | . . 16 Total Orders . | . . . Ally Attacks 2 | . . 2 Total Damage 32 | . . 32 Kills . | . . . Allies Corrupted . | . . . Allies Melted . | . . . Intel | -11 -10 -10 ------- Run | Jun Mat Min Robot Analysis Total 2 | . 2 . Derelict Logs Recovered 1 | . . 1 Drone Launches . | . . . Drone Recoveries . | . . . Exploration | -11 -10 -10 ------------- Run | Jun Mat Min Turns Passed 2735 | 34 2234 467 Spaces Moved 1321 | 28 1071 222 Core . | . . . Treads . | . . . Legs 1321 | 28 1071 222 Wheels . | . . . Hover . | . . . Flight . | . . . Fastest Speed 120 | 120 120 190 Average Speed 179 | 120 179 190 Slowest Speed 190 | 120 190 190 Overloaded Moves . | . . . Propulsion Burnouts . | . . . Robots Hopped . | . . . Cave-ins Triggered . | . . . Exploration Rate (%) 55 | 4 99 64 Regions Visited 2 Branch Regions 1 Pre-discovered Areas . | . . . Known Exits Taken 1 | . 1 . Unknown Exits Taken 1 | 1 . . Scrap Searched 1 | . . 1 Spaces Dug . | . . . Terrain Destroyed 8 | . . 8 Melee . | . . . Projectile . | . . . AOE 8 | . . 8 Terrain Rammed . | . . . Walls Destroyed . | . . . Machines Disabled . | . . . Actions | -11 -10 -10 --------- Run | Jun Mat Min Total 1550 | 29 1269 252 Wait 85 | . 77 8 Move 1319 | 27 1070 222 Hop . | . . . Pick Up 24 | . 20 4 Fast Attach 2 | . 2 . Attach 7 | . 3 4 Detach 1 | . 1 . Swap 10 | . 7 3 Drop 20 | 2 16 2 Fire 73 | . 64 9 Melee . | . . . Ram . | . . . Kick 9 | . 9 . Crush . | . . . Escape Stasis . | . . . Rewire . | . . . Trap . | . . . Miscellaneous . | . . . Route ------- -11/Junkyard -10/Materials (discovered 5 exits: [*Mat x3] / *Min x2) -10/Mines (discovered 2 exits: [*Mat x2]) History --------- Turn | Location | Event 1 | -11/Junkyard | Discovered new exit (range 3) 35 | -11/Junkyard | Entered Materials 74 | -10/Materials | Identified exit to Mines 481 | -10/Materials | Build established: Scavenger-Mutant 513 | -10/Materials | Discovered new exit (range 15) 1014 | -10/Materials | Core integrity fell below 50% 1474 | -10/Materials | Discovered new exit (range 16) 1697 | -10/Materials | Discovered new exit (range 15) 2269 | -10/Materials | Entered Mines 2307 | -10/Mines | Discovered new exit (range 11) 2330 | -10/Mines | Assisted by bots powering up and referring to "LRC-V3" 2505 | -10/Mines | YI-UF0 nonchalantly dropped a Grenade Launcher on the ground 2683 | -10/Mines | Assembled infested the area 2687 | -10/Mines | Learned location of 1 exit from Materials 2714 | -10/Mines | Core integrity fell below 20% 2724 | -10/Mines | Discovered new exit (range 11) 2736 | -10/Mines | Destroyed by as-11096 with Assembled Heavy Rifle Last Messages --------------- 02714_ R-06 Scavenger collects Aluminum Leg. 02715_ as-87832 destroyed. 02716_ R-06 Scavenger collects Heat Sink. 02717_ R-06 Scavenger collects Sml. Laser. 02718_ Power failure, Lgt. Ion Engine shutdown. 02718_ as-79122 destroyed. 02720_ Mni. Grenade Launcher broken. 02720_ Overheating: Short circuit. 02720_ R-06 Scavenger collects Aluminum Leg. 02721_ K-01 Serf collects debris. 02721_ R-06 Scavenger collects Ion Engine. 02724_ EXIT=FOUND 02725_ R-06 Scavenger collects Wheel. 02728_ Acquired Aluminum Leg. 02729_ The unstable cave ceiling collapses. 02731_ T-07 Excavator destroyed. 02734_ The unstable cave ceiling collapses. 02734_ K-01 Serf collects debris. 02736_ The unstable cave ceiling collapses. 02736_ Particle Gun crushed. Map ----- +----------------------------------------------------+ | ????????????????????????????????????????????? | | ????????????????????????????????????????????? | | ????????????????????????????????????????????? | | ????????????????????????????????????????????? | | ????????????????????????????????????????????? | | ????????????????????????????????????????????? | | ????????????????????????????????????????????? | | ????????????????????????????????????????????? | | ????????????????????????????????????????????? | | ????????????????????????????????????????????? | | ????????????????????????????????????????????? | | ?????????????????????##?????????????????????? | | ????????????????????# ####?????????????????? | | ??????????????????? ?????????????????? | | ??????????????????? ?????????????????? | | ???????????????????# #?????????????????? | | ???????????????????# % ###???????????????? | | ???????????????????# # ##??????????????? | | ???????????? ?????# #??????????????? | | ??????????? ???? a #??????????????? | | ??????????? %%##?## #??????????????? | | ??????????? ## # ##?????????????? | | ??????????? #?????????????? | | ?????????????# # #?????????????? | | ??????????????## t #?????????????? | | ??????????????# #= @ #??????????????? | | ???????????????# #% r ###########?????? | | ???????????????#???# %| # % #?????? | | ???????????????????## % % % #?????? | | ???????????????????# %r #?????? | | ???????????????????# # """ < #?????? | | ???????????????????# # """" #?????? | | #??????????????????# # k """ #?????? | | #####??????????????# ??????? | | #??????????????## = ??????? | | ### #????##############%!############???????? | | #???????? *! ##?????????????????? | | #???????? #?????????????????? | | #???????????######### ##????????????????? | | ????????????????????# ####??#####??????? | | ????????????????????## #### #??????? | | ????????????????????## ## #??????? | | ????????####?????#### ##?????? | | ???????## #????## ##????? | | ??????## #????# ##???? | | ??##### ##???# #???? | | ?? #?# ##??# ## #???? | | ?? #?# #### #### #### ##???? | | ?? ### ## ##??## #??# ##????? | | ?? ### #????## ##??# #?????? | +----------------------------------------------------+ Best States ------------- Heat Dissipation 39 Energy Generation 14 Energy Capacity 250 Matter Stores 300 Matter Capacity 300 Sight Range 16 Terrain Scan Density 10 Evasion (%) 55 Item Schematics ----------------- None Robot Schematics ------------------ None Fabricated ------------ Nothing Alien Tech Used ----------------- None Achievements -------------- None Challenges ------------ None Game ------ Seed ThrusterArmageddonBeam Manual? 0 Play Time 00:20:02 Cumulative 116.8 hours Start 2023.05.13 @ 18:56:19 End 2023.05.13 @ 19:17:26 Sessions 1 Manual Loads 0 Difficulty Rogue Special Mode None Game No. 107 Rogue 59 Adventurer 22 Explorer 26 Win Type - Total 0 Types 0/0/0/0/0/0/0/0/0 Lore% 38 Gallery% 57 Achievement% 66 Wizard Run 0 Options --------- ASCII 0 Keyboard 0 Movement Mouse Keybinds 0 Fullscreen 0 Font 16/Smallcaps Map View 76x50 Tactical HUD 1 Map Filters NONE Filters BRIGHTNESS(125)|SATURATION(75)|LOW_CONTRAST(0,16,30)|SHIFT_HUE(130) Steam 1 RUN: bda5a89c-55d9-4a7f-9423-d6aec7f70bb1